bitfinex-derivatives/quotes_SOLF0:USTF0_20240907
["timestamp","ask_amount","ask_price","bid_price","bid_amount"]
[1725705485610,23.57,127.46,127.4,30.18]
[1725705486001,4.1651,127.47,127.4,30.18]
[1725705486201,4.1651,127.47,127.3,7.8565]
[1725705486202,23.57,127.44,127.3,7.8565]
[1725705486506,3.9253,127.4,127.34,30.18]
[1725705486704,53.75,127.38,127.29,2.7065]
[1725705487098,3.9263,127.37,127.34,3.927]
[1725705487409,31.5948,127.38,127.29,32.8865]
[1725705487410,1.4148,127.38,127.29,32.8865]
[1725705487804,5.3409,127.38,127.34,3.9268]
[1725705489110,23.57,127.44,127.37,30.18]
[1725705489303,26.249,127.44,127.34,30.18]
[1725705489510,26.249,127.44,127.28,11.73767068]
[1725705489511,3.9269,127.35,127.31,3.9278]
[1725705489809,30.18,127.38,127.28,3.94391803]
[1725705490013,3.926,127.38,127.34,3.9268]
[1725705491210,3.9256,127.39,127.32,30.18]
[1725705491506,23.57,127.41,127.32,30.18]
[1725705492509,3.9253,127.4,127.32,30.18]
[1725705494302,3.925,127.41,127.32,30.18]
[1725705494506,24.9668,127.43,127.34,30.18]
[1725705494910,3.925,127.41,127.37,3.9258]
[1725705495300,3.925,127.41,127.34,30.18]
[1725705495502,1.3968,127.43,127.36,30.18]
[1725705496610,5.3213,127.43,127.39,3.9253]
[1725705497417,24.9668,127.43,127.38,3.9256]
[1725705498004,3.9249,127.41,127.38,3.9256]
[1725705499510,3.9247,127.42,127.39,3.9255]
[1725705507420,5.3212,127.43,127.4,3.9251]
[1725705507615,3.9244,127.43,127.37,4.01704608]
[1725705507815,3.9244,127.43,127.36,30.18]
[1725705508512,3.9244,127.43,127.4,3.925]
[1725705512931,23.57,127.43,127.31,1.3368]
[1725705513226,55.1362,127.42,127.32,6.8739901]
[1725705513422,3.9256,127.39,127.36,3.9263]
[1725705514230,3.9253,127.4,127.37,3.926]
[1725705515022,1.3477,127.41,127.37,3.926]
[1725705515023,3.9255,127.39,127.37,3.926]
[1725705517826,3.9255,127.39,127.36,3.9263]
[1725705521923,3.9255,127.39,127.37,3.9261]
[1725705523524,3.9255,127.39,127.36,3.9261]
[1725705524232,3.9255,127.39,127.37,3.9261]
[1725705524428,3.9253,127.4,127.37,3.9261]
[1725705524728,1.3862,127.42,127.38,3.9257]
[1725705525029,3.925,127.41,127.38,3.9257]
[1725705525830,1.3862,127.42,127.31,2.7016]
[1725705526129,25.5262,127.42,127.33,24.14]
[1725705526829,3.9254,127.4,127.37,3.926]
[1725705529330,3.9254,127.4,127.38,3.9258]
[1725705529736,3.9251,127.41,127.38,3.9258]
[1725705533642,3.9253,127.4,127.37,3.9259]
[1725705536537,3.9256,127.39,127.37,3.9259]
[1725705538534,3.9254,127.4,127.37,3.9259]
[1725705541151,3.9255,127.39,127.37,3.9259]
[1725705542345,24.14,127.4,127.35,2.85861893]
[1725705542552,1.4039,127.38,127.32,6.87763708]
[1725705542746,1.4039,127.38,127.33,6.87763708]
[1725705543052,1.4039,127.38,127.33,3.9271]
[1725705543549,3.9266,127.36,127.33,3.9271]
[1725705543950,25.5439,127.38,127.31,1.3368]
[1725705544155,24.14,127.35,127.27,1.3336]
[1725705544446,24.14,127.35,127.32,2.85959021]
[1725705544856,3.9272,127.34,127.3,7.94762305]
[1725705545048,3.9272,127.34,127.3,6.78759021]
[1725705545254,3.9272,127.34,127.3,3.928]
[1725705547757,24.14,127.35,127.29,2.8602408]
[1725705547949,1.403,127.34,127.27,6.88138861]
[1725705548151,1.403,127.34,127.28,4.02066975]
[1725705548651,1.403,127.34,127.27,6.88142167]
[1725705548857,3.9281,127.31,127.28,10.81012167]
[1725705549050,3.9281,127.31,127.28,3.9287]
[1725705550651,1.403,127.34,127.27,4.02073053]
[1725705550652,3.9279,127.32,127.27,4.02073053]
[1725705550852,3.9279,127.32,127.28,2.86065638]
[1725705551049,3.9279,127.32,127.29,3.9283]
[1725705551954,3.9275,127.33,127.3,3.9282]
[1725705556960,3.9275,127.33,127.28,24.14]
[1725705556961,3.9275,127.33,127.31,3.9279]
[1725705558955,3.9275,127.33,127.3,3.9281]
[1725705561559,26.759,127.37,127.32,24.14]
[1725705561560,1.2914,127.37,127.32,24.14]
[1725705561863,1.2914,127.37,127.33,3.9028101]
[1725705562060,1.4039,127.38,127.32,24.14]
[1725705562256,1.4039,127.38,127.33,3.96363854]
[1725705562659,5.3298,127.38,127.35,3.9266]
[1725705562853,5.3298,127.38,127.33,3.96363854]
[1725705563161,5.3298,127.38,127.35,3.9266]
[1725705563363,1.4039,127.38,127.33,3.96363854]
[1725705564364,1.4039,127.38,127.32,24.14]
[1725705564961,1.4039,127.38,127.33,3.93653876]
[1725705565363,1.4039,127.38,127.32,24.14]
[1725705565869,1.4039,127.38,127.35,3.9265]
[1725705567555,1.4039,127.38,127.36,3.9264]
[1725705570058,3.9257,127.39,127.36,3.9264]
[1725705572380,5.295,127.41,127.38,3.9256]
[1725705572668,5.295,127.41,127.38,13.5856]
[1725705573770,1.3699,127.41,127.38,3.9256]
[1725705574068,5.2949,127.41,127.38,3.9256]
[1725705578974,5.2949,127.41,127.39,3.9255]
[1725705579570,38.4393102,127.41,127.3,1.2808]
[1725705579771,9.66,127.4,127.34,9.66]
[1725705579972,10.9732,127.4,127.35,3.9267]
[1725705580275,33.23,127.36,127.26,104.13273251]
[1725705580469,9.66,127.29,127.27,6.87876963]
[1725705580668,1.4037,127.35,127.27,6.87876963]
[1725705580864,1.4037,127.35,127.23,1.3974]
[1725705580865,34.6337,127.35,127.26,3.91558586]
[1725705581067,9.66,127.33,127.27,9.66]
[1725705581374,24.9737,127.35,127.12,7.8671]
[1725705581375,33.23,127.28,127.12,7.8671]
[1725705581673,9.66,127.26,127.19,9.66]
[1725705581866,9.66,127.26,127.2,10.8896026]
[1725705582272,9.66,127.26,127.2,6.86572743]
[1725705582464,3.9295,127.26,127.22,3.9307]
[1725705583773,3.9301,127.25,127.14,2.5938]
[1725705583974,3.9301,127.25,127.17,24.17]
[1725705584174,29.59687416,127.27,127.18,6.80426281]
[1725705584393,3.9305,127.23,127.18,3.94072891]
[1725705584676,3.9305,127.23,127.15,27.0335339]
[1725705584877,3.9305,127.23,127.16,2.8635339]
[1725705585375,3.9305,127.23,127.18,3.9318]
[1725705585580,3.9305,127.23,127.18,7.79844313]
[1725705587172,3.9305,127.23,127.19,3.9317]
[1725705589274,3.9304,127.24,127.2,3.9313]
[1725705591572,3.9304,127.23,127.2,3.9313]
[1725705591983,3.9304,127.23,127.19,3.9315]
[1725705594185,3.9303,127.24,127.2,3.9311]
[1725705597792,3.9298,127.25,127.22,3.9305]
[1725705597983,3.9298,127.25,127.19,24.17]
[1725705598382,2.7602,127.26,127.19,24.17]
[1725705598787,3.9301,127.24,127.21,3.9309]
[1725705599582,2.7602,127.26,127.22,3.9307]
[1725705599583,3.93,127.25,127.22,3.9307]
[1725705600181,3.9298,127.26,127.23,3.9304]
[1725705604092,3.9298,127.26,127.24,3.9301]
[1725705604387,5.333,127.27,127.21,24.17]
[1725705604581,5.333,127.27,127.21,25.5588]
[1725705604986,3.9295,127.26,127.21,25.5588]
[1725705605989,3.9295,127.26,127.23,3.9302]
[1725705607393,5.3331,127.27,127.24,3.93]
[1725705607995,3.9301,127.25,127.21,1.3888]
[1725705608188,1.4037,127.27,127.22,9.66]
[1725705608693,3.9296,127.26,127.23,3.9303]
[1725705610693,3.9296,127.26,127.24,3.9301]
[1725705610995,5.3331,127.27,127.24,3.9301]
[1725705614092,9.66,127.3,127.24,9.66]
[1725705614485,3.9288,127.29,127.26,3.9294]
[1725705614790,9.66,127.3,127.26,3.9294]
[1725705614990,3.9289,127.29,127.26,3.9294]
[1725705615391,9.66,127.3,127.26,3.9294]
[1725705615600,3.9286,127.29,127.26,3.9294]
[1725705616289,3.9284,127.3,127.26,9.66]
[1725705616688,10.9606,127.33,127.26,9.66]
[1725705616887,3.9281,127.31,127.26,9.66]
[1725705617285,1.3006,127.33,127.25,3.9679333]
[1725705617494,1.3006,127.33,127.3,9.66]
[1725705617885,1.3006,127.33,127.31,3.9277]
[1725705618088,3.98076709,127.36,127.3,9.66]
[1725705618294,9.66,127.36,127.3,9.66]
[1725705618494,3.84783837,127.36,127.3,9.66]
[1725705618792,9.66,127.36,127.3,9.66]
[1725705618992,9.66,127.36,127.31,3.9278]
[1725705618993,3.927,127.34,127.31,3.9278]
[1725705619195,3.927,127.34,127.3,9.66]
[1725705619390,13.52159328,127.36,127.27,1.3675]
[1725705619391,3.86159328,127.36,127.27,1.3675]
[1725705619586,9.66,127.35,127.28,9.66]
[1725705619786,3.84980336,127.34,127.27,5.24913616]
[1725705619992,3.84980336,127.34,127.28,9.66]
[1725705620201,9.66,127.33,127.28,3.9287]
[1725705620391,11.0114,127.33,127.28,3.9287]
[1725705620591,3.928,127.31,127.28,3.9287]
[1725705620790,11.0114,127.33,127.28,3.9287]
[1725705620995,11.0114,127.33,127.28,13.5887]
[1725705621701,1.3514,127.33,127.28,13.5887]
[1725705622099,3.9279,127.32,127.28,13.5887]
[1725705623696,3.928,127.31,127.26,5.20406306]
[1725705623895,3.928,127.31,127.26,14.86406306]
[1725705624594,11.0114,127.33,127.26,14.86406306]
[1725705624995,3.9281,127.31,127.27,3.929]
[1725705625498,3.9281,127.31,127.26,14.86406306]
[1725705625694,3.9281,127.31,127.27,3.929]
[1725705627106,3.9281,127.31,127.28,3.9289]
[1725705633803,3.9281,127.31,127.28,13.5889]
[1725705634807,1.3514,127.33,127.3,9.66]
[1725705636014,5.2789,127.33,127.3,13.5882]
[1725705641611,5.2789,127.33,127.3,3.9282]
[1725705647818,3.9278,127.32,127.29,13.5884]
[1725705653224,3.9278,127.32,127.29,3.9284]
[1725705653819,3.928,127.31,127.29,3.9284]
[1725705654525,3.928,127.31,127.28,13.5887]
[1725705660223,3.9279,127.32,127.29,3.9286]
[1725705664035,3.9279,127.32,127.29,13.5886]
[1725705667126,3.928,127.31,127.29,3.9286]
[1725705667338,1.3514,127.33,127.27,1.3617]
[1725705667532,1.3514,127.33,127.27,11.0217]
[1725705667732,1.3514,127.33,127.28,3.9289]
[1725705667733,3.9281,127.31,127.28,3.9289]
[1725705668235,3.9281,127.31,127.28,13.5889]
[1725705668438,3.9278,127.32,127.28,9.66]
[1725705668639,1.3514,127.33,127.29,9.66]
[1725705669437,3.9277,127.32,127.29,13.5884]
[1725705669938,1.3514,127.33,127.29,9.66]
[1725705670138,3.9275,127.33,127.3,3.9281]
[1725705680841,3.9277,127.32,127.29,3.9284]
[1725705693758,9.66,127.34,127.29,3.9284]
[1725705693956,33.25,127.34,127.28,3.9286]
[1725705694364,3.9282,127.31,127.28,3.9286]
[1725705695655,3.9282,127.31,127.28,9.66]
[1725705699463,3.9282,127.31,127.29,3.9285]
[1725705699963,3.9282,127.31,127.28,13.5887]
[1725705703665,3.9282,127.31,127.28,3.9287]
[1725705706068,9.66,127.34,127.27,3.929]
[1725705706069,3.9283,127.3,127.27,3.929]
[1725705707078,3.9286,127.29,127.26,7.82626306]
[1725705707371,3.9286,127.29,127.27,2.8589709]
[1725705707771,3.9286,127.29,127.26,7.82626306]
[1725705707966,3.9286,127.29,127.27,2.85900796]
[1725705708172,3.9286,127.29,127.26,7.82626306]
[1725705708379,3.9286,127.29,127.27,2.85904445]
[1725705708567,3.9286,127.29,127.26,7.82626306]
[1725705709372,3.9286,127.29,127.27,2.85895881]
[1725705709574,3.9286,127.29,127.26,7.82626306]
[1725705709785,3.9286,127.29,127.27,2.85895881]
[1725705709974,3.9286,127.29,127.26,7.82626306]
[1725705710168,3.9286,127.29,127.27,2.85901193]
[1725705710368,3.9286,127.29,127.26,7.82626306]
[1725705710573,3.9286,127.29,127.27,2.85895881]
[1725705710784,3.9286,127.29,127.26,7.82626306]
[1725705711080,3.9286,127.29,127.27,2.85895881]
[1725705711282,3.9286,127.29,127.26,7.82626306]
[1725705711579,3.9286,127.29,127.27,2.8590312]
[1725705711779,3.9286,127.29,127.26,7.82626306]
[1725705712079,3.9286,127.29,127.27,2.85905274]
[1725705712281,3.929,127.28,127.25,3.9296]
[1725705712775,3.929,127.28,127.27,2.8590361]
[1725705712976,3.929,127.28,127.26,2.8590361]
[1725705713284,3.929,127.28,127.25,7.77525346]
[1725705713978,3.929,127.28,127.26,2.85997097]
[1725705714174,3.929,127.28,127.25,7.77525346]
[1725705714371,3.9288,127.29,127.26,2.85981156]
[1725705714577,1.3118,127.31,127.27,9.66]
[1725705715082,3.9286,127.3,127.27,13.5892]
[1725705715285,1.3118,127.31,127.27,9.66]
[1725705716382,3.9286,127.29,127.26,17.60739225]
[1725705718080,1.3118,127.31,127.26,17.60739225]
[1725705719387,3.9289,127.29,127.26,17.60739225]
[1725705720279,1.3118,127.31,127.26,13.67809225]
[1725705720480,1.3118,127.31,127.27,12.51944801]
[1725705720680,1.3118,127.31,127.27,9.66]
[1725705721077,3.9285,127.3,127.27,17.4633521]
[1725705722390,5.2399,127.31,127.28,3.9288]
[1725705723988,1.3273,127.33,127.28,9.66]
[1725705724879,3.928,127.31,127.28,13.5888]
[1725705731288,1.2849,127.35,127.3,9.66]
[1725705731992,1.2849,127.35,127.3,13.56429547]
[1725705732191,3.9272,127.34,127.31,3.9277]
[1725705732392,3.9272,127.34,127.3,13.56429547]
[1725705732594,9.66,127.33,127.25,1.4057]
[1725705732789,3.9278,127.32,127.29,3.9286]
[1725705733195,3.9278,127.32,127.29,7.95233854]
[1725705733394,3.9278,127.32,127.29,3.9286]
[1725705733983,3.9278,127.32,127.29,7.77639957]
[1725705737799,3.9275,127.33,127.3,3.9282]
[1725705738195,10.9449,127.35,127.29,7.77619957]
[1725705738593,10.9449,127.35,127.29,3.84779957]
[1725705738796,3.9279,127.32,127.27,9.66]
[1725705739003,3.9279,127.32,127.27,13.62174442]
[1725705739486,3.9279,127.32,127.29,3.9285]
[1725705742802,3.9276,127.33,127.3,9.66]
[1725705743490,3.9276,127.33,127.3,13.5881]
[1725705747701,3.9276,127.33,127.3,3.9281]
[1725705748307,3.9277,127.32,127.3,3.9281]
[1725705748802,3.9285,127.3,127.26,3.89730664]
[1725705749001,3.9285,127.3,127.27,2.85920381]
[1725705749203,3.9285,127.3,127.27,3.86705232]
[1725705749400,3.9285,127.3,127.25,11.0657]
[1725705749700,3.9285,127.3,127.27,3.929]
[1725705750005,1.2849,127.35,127.28,9.66]
[1725705750304,24.92,127.44,127.34,9.66]
[1725705750495,3.9255,127.4,127.35,9.66]
[1725705750696,0.4280209,127.43,127.36,9.66]
[1725705750891,17.60850657,127.44,127.38,9.66]
[1725705751193,3.9248,127.42,127.38,9.66]
[1725705751397,3.9248,127.42,127.38,13.5858]
[1725705754603,9.66,127.43,127.37,17.54333762]
[1725705754795,9.66,127.43,127.37,13.586]
[1725705755200,3.9251,127.41,127.37,13.586]
[1725705755399,4.0116,127.44,127.38,3.9255]
[1725705755606,9.66,127.43,127.38,3.9255]
[1725705756496,13.6716,127.44,127.38,13.5855]
[1725705757003,3.9249,127.41,127.38,13.5855]
[1725705760311,13.6716,127.44,127.37,3.9442499]
[1725705760312,1.33,127.44,127.4,9.66]
[1725705760505,1.33,127.44,127.37,3.9442499]
[1725705760506,1.33,127.44,127.41,9.66]
[1725705761307,5.2541,127.44,127.41,13.5848]
[1725705761507,144.84027247,127.48,127.41,9.66]
[1725705762011,3.9239,127.45,127.43,9.66]
[1725705764412,3.9239,127.45,127.42,3.9244]
[1725705764616,3.9239,127.45,127.41,13.5848]
[1725705765207,3.9239,127.45,127.42,9.66]
[1725705766018,3.9239,127.45,127.42,13.5845]
[1725705766517,1.2896,127.48,127.44,9.66]
[1725705766821,12.364,127.5,127.44,9.66]
[1725705767117,3.9232,127.47,127.44,9.66]
[1725705767514,3.9232,127.47,127.44,13.5839]
[1725705767716,3.9229,127.48,127.44,9.66]
[1725705767915,3.9229,127.48,127.45,9.66]
[1725705768512,3.9231,127.47,127.45,9.66]
[1725705770015,3.9231,127.47,127.45,13.5836]
[1725705771319,2.704,127.5,127.45,9.66]
[1725705771320,3.9233,127.46,127.45,9.66]
[1725705771621,3.9233,127.46,127.43,9.66]
[1725705772325,3.9232,127.47,127.45,9.66]
[1725705777026,16.21228166,127.5,127.43,3.9241]
[1725705777230,16.21228166,127.5,127.44,9.66]
[1725705778025,3.9234,127.46,127.44,9.66]
[1725705780128,3.9236,127.45,127.42,3.9245]
[1725705780323,3.9236,127.45,127.43,9.66]
[1725705784349,3.9235,127.46,127.44,9.66]
[1725705786825,16.21228166,127.5,127.44,9.66]
[1725705788031,3.9236,127.46,127.44,9.66]
[1725705790435,3.9236,127.45,127.44,9.66]
[1725705793643,3.9235,127.46,127.44,9.66]
[1725705795541,3.9235,127.46,127.43,3.9242]
[1725705795741,3.9235,127.46,127.44,9.66]
[1725705799355,3.9238,127.45,127.43,9.66]
[1725705799845,3.9235,127.46,127.43,13.5842]
[1725705802437,3.9237,127.45,127.44,9.66]
[1725705802842,39.80228166,127.5,127.44,9.66]
[1725705803336,3.9235,127.46,127.44,9.66]
[1725705805352,9.66,127.46,127.38,2.7507]
[1725705805556,1.3325,127.45,127.4,9.66]
[1725705806751,3.9241,127.44,127.41,9.66]
[1725705806948,1.3325,127.45,127.42,9.66]
[1725705807145,141.19613092,127.49,127.44,9.66]
[1725705807346,142.52863092,127.49,127.44,9.66]
[1725705807947,3.9234,127.46,127.44,13.5839]
[1725705808353,3.9234,127.46,127.44,9.66]
[1725705809449,3.9232,127.47,127.44,9.66]
[1725705810350,3.9232,127.47,127.44,13.5838]
[1725705813254,3.9234,127.46,127.44,13.5838]
[1725705815061,3.9234,127.46,127.43,13.5842]
[1725705817859,9.66,127.48,127.42,9.66]
[1725705818353,3.924,127.44,127.42,9.66]
[1725705820657,3.9243,127.43,127.42,9.66]
[1725705820958,3.9243,127.43,127.4,13.585]
[1725705821866,3.9246,127.42,127.4,9.66]
[1725705822061,3.9246,127.42,127.39,3.9253]
[1725705822261,3.9246,127.42,127.4,9.66]
[1725705822853,3.9244,127.43,127.4,13.5852]
[1725705824059,3.9246,127.42,127.4,13.5852]
[1725705824462,9.66,127.44,127.37,3.9442499]
[1725705824660,9.66,127.44,127.38,9.66]
[1725705824661,10.9715,127.44,127.38,9.66]
[1725705824861,10.9715,127.44,127.39,9.66]
[1725705824862,3.91514145,127.43,127.39,9.66]
[1725705825065,10.9715,127.44,127.39,9.66]
[1725705825263,3.925,127.41,127.39,9.66]
[1725705825859,3.925,127.41,127.38,3.9257]
[1725705826059,3.925,127.41,127.38,13.5857]
[1725705828670,3.9248,127.42,127.4,9.66]
[1725705830558,3.9248,127.42,127.39,3.9253]
[1725705830763,1.3115,127.44,127.38,13.5857]
[1725705831265,13.50674984,127.43,127.38,9.66]
[1725705831564,3.86245246,127.42,127.38,9.66]
[1725705831961,3.9254,127.4,127.38,9.66]
[1725705832167,9.66,127.42,127.37,3.9259]
[1725705832365,9.66,127.41,127.34,5.28720317]
[1725705832575,3.926,127.38,127.35,3.9266]
[1725705834065,3.9262,127.37,127.34,18.87410317]
[1725705834468,9.66,127.41,127.34,18.87410317]
[1725705834675,3.9262,127.37,127.34,18.87410317]
[1725705835472,3.9259,127.38,127.35,3.9267]
[1725705840487,3.9264,127.37,127.34,18.87410317]
[1725705842387,9.66,127.39,127.31,1.2957]
[1725705842592,11.0801,127.38,127.32,3.86336234]
[1725705842780,11.0801,127.38,127.32,13.52336234]
[1725705843091,1.4201,127.38,127.34,9.66]
[1725705843283,27.50937447,127.43,127.36,9.66]
[1725705843284,9.66,127.42,127.36,9.66]
[1725705843482,11.0801,127.42,127.36,9.66]
[1725705844589,3.9258,127.39,127.37,9.66]
[1725705847896,3.9253,127.4,127.37,9.66]
[1725705848097,3.9253,127.4,127.38,9.66]
[1725705848896,1.4201,127.42,127.38,9.66]
[1725705849092,12.4148,127.46,127.39,9.66]
[1725705849288,1.4082,127.45,127.39,9.66]
[1725705849889,3.9249,127.41,127.39,9.66]
[1725705853902,3.9249,127.41,127.38,13.5856]
[1725705862709,3.9248,127.42,127.39,3.9254]
[1725705863005,3.9248,127.42,127.39,13.5854]
[1725705865019,11.0682,127.45,127.39,9.66]
[1725705865211,3.9249,127.41,127.39,9.66]
[1725705865720,3.9247,127.42,127.39,9.66]
[1725705866715,3.9249,127.41,127.39,9.66]
[1725705867714,3.9249,127.41,127.38,13.5856]
[1725705878715,3.9249,127.41,127.39,9.66]
[1725705881812,3.9249,127.41,127.39,13.5855]
[1725705883120,3.9247,127.42,127.39,13.5855]
[1725705883820,3.9247,127.42,127.41,9.66]
[1725705884913,11.0682,127.45,127.39,13.5854]
[1725705886320,3.9247,127.42,127.39,13.5854]
[1725705893027,3.9247,127.42,127.4,13.5852]
[1725705895633,3.9247,127.42,127.4,9.66]
[1725705901429,3.9247,127.42,127.4,13.5852]
[1725705903135,3.9243,127.43,127.4,13.5852]
[1725705903335,3.9243,127.43,127.42,9.66]
[1725705903936,3.9241,127.44,127.42,9.66]
[1725705904728,1.4082,127.45,127.36,1.4042]
[1725705904943,9.66,127.44,127.36,1.4042]
[1725705905135,13.66739524,127.43,127.36,1.4042]
[1725705905330,13.66739524,127.43,127.37,9.66]
[1725705905533,13.66739524,127.43,127.37,2.8470135]
[1725705905832,3.9254,127.4,127.37,12.5070135]
[1725705906745,3.9255,127.39,127.37,12.5070135]
[1725705907245,3.9258,127.38,127.37,12.5070135]
[1725705907831,3.9268,127.35,127.32,3.99404772]
[1725705908033,9.66,127.38,127.32,9.66]
[1725705908335,9.66,127.38,127.32,13.55294344]
[1725705908536,3.9269,127.35,127.32,13.55294344]
[1725705908753,3.9269,127.35,127.33,2.85233551]
[1725705909840,3.9269,127.35,127.32,17.48054344]
[1725705910243,3.9269,127.35,127.33,9.66]
[1725705910744,1.341,127.4,127.34,9.66]
[1725705910948,1.341,127.4,127.36,9.66]
[1725705912047,3.926,127.38,127.36,9.66]
[1725705915043,3.9256,127.39,127.37,9.66]
[1725705917845,13.62882533,127.43,127.37,9.66]
[1725705918247,13.62882533,127.43,127.36,9.66]
[1725705918545,13.62882533,127.43,127.37,9.66]
[1725705918946,3.9257,127.39,127.37,9.66]
[1725705919952,13.62882533,127.43,127.37,9.66]
[1725705920155,9.66,127.42,127.36,9.66]
[1725705920351,3.926,127.38,127.36,9.66]
[1725705923555,3.9257,127.39,127.37,9.66]
[1725705924856,3.9257,127.39,127.36,13.5864]
[1725705927862,13.58767402,127.43,127.36,9.66]
[1725705928364,3.9259,127.38,127.36,9.66]
[1725705931967,9.66,127.4,127.32,1.3134]
[1725705932158,9.66,127.4,127.33,3.83490791]
[1725705932358,1.4227,127.39,127.34,9.66]
[1725705933268,11.0827,127.39,127.32,1.3134]
[1725705933564,13.9157,127.39,127.32,9.66]
[1725705933761,13.9157,127.39,127.32,13.5875]
[1725705933762,3.927,127.35,127.32,13.5875]
[1725705933965,3.927,127.35,127.33,9.66]
[1725705940976,3.9266,127.36,127.33,9.66]
[1725705942471,3.9266,127.36,127.33,13.5873]
[1725705945087,3.9268,127.35,127.33,9.66]
[1725705946879,3.9266,127.36,127.33,13.5873]
[1725705949788,1.4227,127.39,127.34,9.66]
[1725705950589,1.4227,127.39,127.34,13.5869]
[1725705950590,3.9262,127.37,127.34,13.5869]
[1725705952586,1.3916,127.42,127.36,9.66]
[1725705952799,227.0,127.51,127.4,9.66]
[1725705953090,13.7752,127.49,127.41,3.90894489]
[1725705953289,9.66,127.45,127.34,2.84348059]
[1725705953484,9.66,127.45,127.37,9.66]
[1725705953485,11.0807,127.44,127.37,9.66]
[1725705953686,3.9246,127.42,127.35,2.84348059]
[1725705953880,4.1152,127.44,127.38,9.66]
[1725705954190,1.4207,127.44,127.4,9.66]
[1725705954690,5.3449,127.44,127.4,9.66]
[1725705955594,3.9243,127.43,127.4,9.66]
[1725705956293,1.4207,127.44,127.4,9.66]
[1725705957390,5.3449,127.44,127.4,9.66]
[1725705957589,141.37848794,127.46,127.41,9.66]
[1725705957796,3.9242,127.44,127.41,9.66]
[1725705958889,3.9239,127.45,127.41,9.66]
[1725705959084,138.64428794,127.46,127.41,9.66]
[1725705959492,3.924,127.44,127.41,9.66]
[1725705960294,3.924,127.44,127.4,3.925]
[1725705960490,9.66,127.44,127.37,1.345]
[1725705960701,138.64428794,127.46,127.39,9.66]
[1725705960900,3.9233,127.46,127.44,9.66]
[1725705961297,1.3115,127.49,127.44,9.66]
[1725705961501,3.923,127.47,127.44,9.66]
[1725705962999,3.9234,127.46,127.44,9.66]
[1725705963501,1.3115,127.49,127.44,13.5837]
[1725705963701,3.9232,127.47,127.44,9.66]
[1725705964803,3.9232,127.47,127.44,13.5838]
[1725705965004,3.9232,127.47,127.45,9.66]
[1725705966494,3.9229,127.48,127.45,13.5836]
[1725705966701,1.3115,127.49,127.45,9.66]
[1725705966902,585.26071698,127.53,127.45,9.66]
[1725705967206,3.9226,127.49,127.47,9.66]
[1725705968203,1.3743,127.52,127.48,13.5825]
[1725705968204,3.922,127.51,127.48,13.5825]
[1725705969204,3.9224,127.49,127.43,4.1177]
[1725705969410,1.3743,127.52,127.47,9.66]
[1725705969596,1.3743,127.52,127.47,13.51552612]
[1725705969802,3.9221,127.5,127.47,17.43852612]
[1725705971009,3.9221,127.5,127.48,9.66]
[1725705972608,3.9224,127.49,127.46,3.9232]
[1725705972815,3.9224,127.49,127.47,9.66]
[1725705973909,11.0343,127.52,127.43,4.1177]
[1725705974110,11.0343,127.52,127.45,9.66]
[1725705974413,3.9232,127.47,127.45,9.66]